[Event "GER-ch Youth U10W 2020"]
[Site "Willingen"]
[Date "2020.10.29"]
[Round "4.8"]
[White "Hoffmann, Svenja"]
[Black "Stepanjan, Tatevik Mia"]
[Result "1-0"]
[ECO "B23"]
[WhiteElo "1219"]
[BlackElo "1030"]
[Annotator "NA RC"]
[PlyCount "90"]
[EventDate "2020.10.27"]
[EventType "swiss"]
[EventRounds "7"]
[EventCountry "GER"]
[SourceTitle "playchess.com"]
[Source "ChessBase"]
[SourceQuality "1"]
[TimeControl "40/4500+30:900+30"]

1. e4 {[%emt 0:00:00]} c5 {[%emt 0:00:00]} 2. Nc3 {[%emt 0:00:02]} Nc6 {[%emt 0:00:00]} 3. f4 {[%emt 0:00:31]} d6 {[%emt 0:00:08]} 4. Nf3 {[%emt 0:00:33]} Nf6 {[%emt 0:00:18]} 5. Bc4 {[%emt 0:00:30]} Bg4 {[%emt 0:00:15]} 6. O-O {[%emt 0:00:51]} g6 {[%emt 0:00:40]} 7. d3 {[%emt 0:00:16]} Bg7 {[%emt 0:00:43]} 8. Qe1 {[%emt 0:00:35]} e5 {[%emt 0:01:10]} 9. Ng5 {[%emt 0:03:55]} O-O {[%emt 0:00:30]} 10. Nd5 {[%emt 0:00:37]} Nd4 {[%emt 0:00:56]} 11. Qh4 {[%emt 0:02:27]} h6 {[%emt 0:00:45]} 12. Nxf6+ {[%emt 0:00:27]} Qxf6 {[%emt 0:01:18]} 13. Bd2 {[%emt 0:02:13]} Be2 {[%emt 0:00:47]} 14. Rf2 {[%emt 0:01:18]} hxg5 {[%emt 0:02:54]} 15. fxg5 {[%emt 0:00:10]} Qe7 {[%emt 0:00:19]} 16. c3 {[%emt 0:00:38]} Bh5 {[%emt 0:01:41]} 17. cxd4 {[%emt 0:00:24]} cxd4 {[%emt 0:00:28]} 18. g4 {[%emt 0:00:10]} Bxg4 {[%emt 0:04:41]} 19. Qxg4 {[%emt 0:00:15]} Rac8 {[%emt 0:01:19]} 20. Bxf7+ {[%emt 0:00:34]} Rxf7 {[%emt 0:04:29]} 21. Qxc8+ {[%emt 0:00:22]} Bf8 {[%emt 0:00:37]} 22. Rxf7 {[%emt 0:00:20]} Qxf7 {[%emt 0:00:32]} 23. Rf1 {[%emt 0:00:10]} Qg7 {[%emt 0:00:24]} 24. Bb4 {[%emt 0:01:15]} Qe7 {[%emt 0:01:15]} 25. Rf6 {[%emt 0:00:18]} Kh7 {[%emt 0:04:55]} 26. Bxd6 {[%emt 0:00:25]} Qg7 {[%emt 0:00:42]} 27. Bxf8 {[%emt 0:00:23]} Qg8 {[%emt 0:00:48]} 28. Qxb7+ {[%emt 0:01:20]} Kh8 {[%emt 0:00:42]} 29. Qxa7 {[%emt 0:00:14]} Qh7 {[%emt 0:01:20]} 30. Qa6 {[%emt 0:00:48]} Qh4 {[%emt 0:01:16]} 31. Bg7+ {[%emt 0:00:31]} Kh7 {[%emt 0:00:44]} 32. Rxg6 {[%emt 0:03:14]} Qg4+ {[%emt 0:00:26]} 33. Kf2 {[%emt 0:00:08]} Qf4+ {[%emt 0:00:22]} 34. Ke2 {[%emt 0:00:10]} Qe3+ {[%emt 0:00:09]} 35. Kd1 {[%emt 0:00:04]} Qg1+ {[%emt 0:00:16]} 36. Kc2 {[%emt 0:00:04]} Qf2+ {[%emt 0:01:00]} 37. Kb3 {[%emt 0:00:09]} Qf7+ {[%emt 0:00:16]} 38. Re6 {[%emt 0:00:36]} Kxg7 {[%emt 0:00:39]} 39. h4 {[%emt 0:00:12]} Kg8 {[%emt 0:00:39]} 40. g6 {[%emt 0:00:33]} Qd7 {[%emt 0:01:18]} 41. Rb6 {[%emt 0:16:58]} Qc7 {[%emt 0:16:05]} 42. Qa8+ {[%emt 0:00:24]} Kg7 {[%emt 0:01:09]} 43. Rb7 {[%emt 0:00:05]} Qxb7+ {[%emt 0:00:27]} 44. Qxb7+ {[%emt 0:00:07]} Kxg6 {[%emt 0:00:09]} 45. a4 {[%emt 0:00:39]} Kh5 {[%emt 0:00:11]} 1-0

[Event "GER-ch Youth U10W 2020"]
[Site "Willingen"]
[Date "2020.10.29"]
[Round "4.9"]
[White "Kutz, Ida Klara"]
[Black "Bakó, Isabella"]
[Result "1-0"]
[ECO "D30"]
[WhiteElo "997"]
[BlackElo "1153"]
[Annotator "NA RC"]
[PlyCount "140"]
[EventDate "2020.10.27"]
[EventType "swiss"]
[EventRounds "7"]
[EventCountry "GER"]
[SourceTitle "playchess.com"]
[Source "ChessBase"]
[SourceQuality "1"]
[TimeControl "40/4500+30:900+30"]

1. d4 {[%emt 0:00:00]} d5 {[%emt 0:00:00]} 2. c4 {[%emt 0:00:00]} e6 {[%emt 0:00:30]} 3. e3 {[%emt 0:00:00]} Nf6 {[%emt 0:01:05]} 4. Nf3 {[%emt 0:00:05]} b6 {[%emt 0:00:53]} 5. Ne5 {[%emt 0:00:47]} Bb7 {[%emt 0:03:15]} 6. Nc3 {[%emt 0:02:02]} Nbd7 {[%emt 0:02:15]} 7. Bd3 {[%emt 0:01:21]} Bd6 {[%emt 0:04:23]} 8. Nxd7 {[%emt 0:05:00]} Qxd7 {[%emt 0:05:21]} 9. O-O {[%emt 0:01:10]} O-O {[%emt 0:02:05]} 10. Re1 {[%emt 0:01:56]} c5 {[%emt 0:04:38]} 11. Nb5 {[%emt 0:01:57]} Bb8 {[%emt 0:04:50]} 12. Nc3 {[%emt 0:02:50]} Qc6 {[%emt 0:05:40]} 13. cxd5 {[%emt 0:01:32]} Nxd5 {[%emt 0:01:40]} 14. Qh5 {[%emt 0:02:16]} Nf6 {[%emt 0:03:22]} 15. Qh3 {[%emt 0:01:47]} a6 {[%emt 0:07:45]} 16. dxc5 {[%emt 0:02:26]} Qxc5 {[%emt 0:05:54]} 17. e4 {[%emt 0:01:30]} e5 {[%emt 0:12:57]} 18. Qg3 {[%emt 0:02:21]} Nh5 {[%emt 0:11:12]} 19. Qg5 {[%emt 0:04:08]} Nf4 {[%emt 0:01:28]} 20. Bxf4 {[%emt 0:03:57]} exf4 {[%emt 0:00:44]} 21. Qxc5 {[%emt 0:00:39]} bxc5 {[%emt 0:00:11]} 22. Na4 {[%emt 0:00:46]} Ba7 {[%emt 0:00:43]} 23. Rab1 {[%emt 0:02:02]} Rab8 {[%emt 0:01:30]} 24. b4 {[%emt 0:01:54]} Bc6 {[%emt 0:01:06]} 25. Nxc5 {[%emt 0:00:40]} Bb5 {[%emt 0:02:10]} 26. Bxb5 {[%emt 0:00:57]} Bxc5 {[%emt 0:00:50]} 27. bxc5 {[%emt 0:00:52]} Rxb5 {[%emt 0:00:11]} 28. Rxb5 {[%emt 0:00:22]} axb5 {[%emt 0:00:06]} 29. Rb1 {[%emt 0:00:33]} Rd8 {[%emt 0:00:37]} 30. c6 {[%emt 0:00:12]} Kf8 {[%emt 0:00:58]} 31. g3 {[%emt 0:00:17]} fxg3 {[%emt 0:00:36]} 32. hxg3 {[%emt 0:00:16]} Rc8 {[%emt 0:00:22]} 33. Rxb5 {[%emt 0:00:29]} Rxc6 {[%emt 0:00:12]} 34. Rb1 {[%emt 0:00:35]} Rc2 {[%emt 0:00:28]} 35. Ra1 {[%emt 0:00:15]} Ke7 {[%emt 0:00:18]} 36. Kg2 {[%emt 0:00:20]} Kd6 {[%emt 0:00:29]} 37. Rh1 {[%emt 0:00:43]} h6 {[%emt 0:00:15]} 38. Ra1 {[%emt 0:00:19]} Ke5 {[%emt 0:00:26]} 39. a4 {[%emt 0:00:31]} Kxe4 {[%emt 0:01:16]} 40. a5 {[%emt 0:00:43]} Rc7 {[%emt 0:00:28]} 41. f3+ {[%emt 0:15:51]} Kd5 {[%emt 0:15:19]} 42. Rd1+ {[%emt 0:01:15]} Ke6 {[%emt 0:00:52]} 43. Re1+ {[%emt 0:02:16]} Kf5 {[%emt 0:00:35]} 44. g4+ {[%emt 0:01:27]} Kf6 {[%emt 0:00:23]} 45. Kg3 {[%emt 0:00:58]} g5 {[%emt 0:00:00]} 46. f4 {[%emt 0:00:00]} gxf4+ {[%emt 0:00:00]} 47. Kxf4 {[%emt 0:00:00]} Rc4+ {[%emt 0:00:00]} 48. Re4 {[%emt 0:00:00]} Rc6 {[%emt 0:00:00]} 49. Re5 {[%emt 0:00:00]} Ra6 {[%emt 0:00:00]} 50. Rh5 {[%emt 0:00:00]} Kg6 {[%emt 0:00:00]} 51. Rb5 {[%emt 0:00:00]} f6 {[%emt 0:00:00]} 52. Ke4 {[%emt 0:00:00]} Kf7 {[%emt 0:00:00]} 53. Kd4 {[%emt 0:00:00]} Ke6 {[%emt 0:00:00]} 54. Rb6+ {[%emt 0:00:00]} Rxb6 {[%emt 0:00:00]} 55. axb6 {[%emt 0:00:00]} Kd6 {[%emt 0:00:00]} 56. b7 {[%emt 0:00:00]} Kc7 {[%emt 0:00:08]} 57. Kd5 {[%emt 0:00:00]} Kxb7 {[%emt 0:00:44]} 58. Ke6 {[%emt 0:00:00]} Kc7 {[%emt 0:01:27]} 59. Kxf6 {[%emt 0:00:00]} Kd6 {[%emt 0:00:40]} 60. Kg6 {[%emt 0:00:00]} Ke6 {[%emt 0:01:26]} 61. Kxh6 {[%emt 0:00:00]} Kf6 {[%emt 0:00:21]} 62. g5+ {[%emt 0:00:00]} Kf7 {[%emt 0:00:26]} 63. Kh7 {[%emt 0:00:00]} Kf8 {[%emt 0:00:26]} 64. g6 {[%emt 0:00:00]} Ke7 {[%emt 0:00:10]} 65. g7 {[%emt 0:00:00]} Kf6 {[%emt 0:00:19]} 66. g8=Q {[%emt 0:00:00]} Ke7 {[%emt 0:00:09]} 67. Qg6 {[%emt 0:00:00]} Kd7 {[%emt 0:00:17]} 68. Qf6 {[%emt 0:00:00]} Kc7 {[%emt 0:00:09]} 69. Qe6 {[%emt 0:00:00]} Kb7 {[%emt 0:00:14]} 70. Qd6 {[%emt 0:00:00]} Ka8 {[%emt 0:00:13]} 1-0

[Event "GER-ch Youth U10W 2020"]
[Site "Willingen"]
[Date "2020.10.29"]
[Round "4.11"]
[White "John, Linnea"]
[Black "Mehner, Clara"]
[Result "1-0"]
[ECO "C02"]
[WhiteElo "1146"]
[BlackElo "1244"]
[Annotator "NA RC"]
[PlyCount "107"]
[EventDate "2020.10.27"]
[EventType "swiss"]
[EventRounds "7"]
[EventCountry "GER"]
[SourceTitle "playchess.com"]
[Source "ChessBase"]
[SourceQuality "1"]
[TimeControl "40/4500+30:900+30"]

1. e4 {[%emt 0:00:00]} e6 {[%emt 0:00:00]} 2. d4 {[%emt 0:00:00]} d5 {[%emt 0:00:00]} 3. e5 {[%emt 0:00:00]} c5 {[%emt 0:00:00]} 4. c3 {[%emt 0:00:00]} Nc6 {[%emt 0:00:27]} 5. Nf3 {[%emt 0:00:18]} Qb6 {[%emt 0:00:45]} 6. Bd3 {[%emt 0:00:10]} cxd4 {[%emt 0:00:18]} 7. cxd4 {[%emt 0:00:11]} Bd7 {[%emt 0:00:14]} 8. Nc3 {[%emt 0:01:13]} Nxd4 {[%emt 0:01:24]} 9. Nxd4 {[%emt 0:00:12]} Qxd4 {[%emt 0:00:50]} 10. O-O {[%emt 0:00:19]} Qxe5 {[%emt 0:02:36]} 11. Re1 {[%emt 0:00:25]} Qc7 {[%emt 0:01:56]} 12. Nb5 {[%emt 0:03:30]} Qd8 {[%emt 0:06:08]} 13. Bf4 {[%emt 0:04:48]} Rc8 {[%emt 0:08:02]} 14. Nxa7 {[%emt 0:02:54]} Bb4 {[%emt 0:09:47]} 15. Nxc8 {[%emt 0:01:31]} Bxe1 {[%emt 0:00:34]} 16. Nd6+ {[%emt 0:00:25]} Ke7 {[%emt 0:03:03]} 17. Qxe1 {[%emt 0:01:55]} Qb6 {[%emt 0:02:39]} 18. Nf5+ {[%emt 0:02:26]} Ke8 {[%emt 0:05:14]} 19. Nxg7+ {[%emt 0:01:28]} Kf8 {[%emt 0:03:25]} 20. Nh5 {[%emt 0:03:00]} Bc6 {[%emt 0:06:32]} 21. Be5 {[%emt 0:02:11]} Qd8 {[%emt 0:11:54]} 22. Bxh8 {[%emt 0:04:59]} Qg5 {[%emt 0:02:46]} 23. Qb4+ {[%emt 0:01:51]} Ke8 {[%emt 0:02:13]} 24. Ng7+ {[%emt 0:02:02]} Kd7 {[%emt 0:00:45]} 25. Qf8 {[%emt 0:04:17]} d4 {[%emt 0:04:06]} 26. Qxf7+ {[%emt 0:03:35]} Kc8 {[%emt 0:01:55]} 27. Qxg8+ {[%emt 0:00:59]} Kd7 {[%emt 0:00:34]} 28. Qxe6+ {[%emt 0:01:17]} Kc7 {[%emt 0:01:46]} 29. Qh3 {[%emt 0:01:28]} Kb8 {[%emt 0:02:08]} 30. Qg3+ {[%emt 0:01:13]} Qxg3 {[%emt 0:00:33]} 31. hxg3 {[%emt 0:01:12]} Ka7 {[%emt 0:01:28]} 32. f4 {[%emt 0:00:20]} Kb8 {[%emt 0:00:25]} 33. f5 {[%emt 0:00:31]} Kc8 {[%emt 0:00:18]} 34. f6 {[%emt 0:00:36]} Bd5 {[%emt 0:00:22]} 35. Rf1 {[%emt 0:01:32]} Bf7 {[%emt 0:00:22]} 36. Bc4 {[%emt 0:00:31]} Bxc4 {[%emt 0:01:28]} 37. f7 {[%emt 0:00:41]} Bxf7 {[%emt 0:00:19]} 38. Rxf7 {[%emt 0:00:32]} d3 {[%emt 0:00:25]} 39. Kf1 {[%emt 0:00:06]} d2 {[%emt 0:00:13]} 40. Ke2 {[%emt 0:00:06]} d1=Q+ {[%emt 0:00:19]} 41. Kxd1 {[%emt 0:15:18]} Kb8 {[%emt 0:15:39]} 42. Kc2 {[%emt 0:00:12]} Ka7 {[%emt 0:00:15]} 43. Kc3 {[%emt 0:00:46]} Kb6 {[%emt 0:00:23]} 44. Kb4 {[%emt 0:00:14]} Kc6 {[%emt 0:00:15]} 45. Rf5 {[%emt 0:00:09]} Kd6 {[%emt 0:00:31]} 46. Kc4 {[%emt 0:00:14]} Kc6 {[%emt 0:00:18]} 47. Rd5 {[%emt 0:00:05]} Kb6 {[%emt 0:00:18]} 48. Rc5 {[%emt 0:00:10]} Ka6 {[%emt 0:00:18]} 49. Rb5 {[%emt 0:00:56]} Ka7 {[%emt 0:00:12]} 50. Kc5 {[%emt 0:00:51]} Kb8 {[%emt 0:00:16]} 51. Kb6 {[%emt 0:01:12]} Kc8 {[%emt 0:00:51]} 52. Rd5 {[%emt 0:00:04]} h6 {[%emt 0:00:44]} 53. Nh5 {[%emt 0:00:21]} Kb8 {[%emt 0:00:16]} 54. Rd8# 1-0

[Event "GER-ch Youth U10W 2020"]
[Site "Willingen"]
[Date "2020.10.29"]
[Round "4.12"]
[White "Zhou, Jenny"]
[Black "Yan, Jenny"]
[Result "1-0"]
[ECO "C54"]
[WhiteElo "1131"]
[BlackElo "952"]
[Annotator "NA RC"]
[PlyCount "29"]
[EventDate "2020.10.27"]
[EventType "swiss"]
[EventRounds "7"]
[EventCountry "GER"]
[SourceTitle "playchess.com"]
[Source "ChessBase"]
[SourceQuality "1"]
[TimeControl "40/4500+30:900+30"]

1. e4 {[%emt 0:00:00]} e5 {[%emt 0:00:00]} 2. Nf3 {[%emt 0:00:00]} Nc6 {[%emt 0:00:00]} 3. Bc4 {[%emt 0:00:00]} Bc5 {[%emt 0:00:00]} 4. c3 {[%emt 0:00:00]} Nf6 {[%emt 0:00:07]} 5. d4 {[%emt 0:00:00]} exd4 {[%emt 0:00:19]} 6. cxd4 {[%emt 0:00:04]} Bb4+ {[%emt 0:00:11]} 7. Nc3 {[%emt 0:00:05]} d5 {[%emt 0:00:39]} 8. exd5 {[%emt 0:00:29]} Nxd5 {[%emt 0:00:14]} 9. O-O {[%emt 0:00:16]} Nxc3 {[%emt 0:00:24]} 10. bxc3 {[%emt 0:00:09]} Bxc3 {[%emt 0:00:14]} 11. Rb1 {[%emt 0:03:08]} O-O {[%emt 0:00:27]} 12. Qd3 {[%emt 0:01:42]} Bxd4 13. Qc2 {[%emt 0:04:20]} Bb6 {[%emt 0:01:44]} 14. Ng5 {[%emt 0:01:14]} Ne5 {[%emt 0:01:32]} 15. Qxh7# 1-0

[Event "GER-ch Youth U10W 2020"]
[Site "Willingen"]
[Date "2020.10.29"]
[Round "4.13"]
[White "Richter, Johanna"]
[Black "Peglau, Lorena"]
[Result "1-0"]
[ECO "D20"]
[WhiteElo "1150"]
[BlackElo "1061"]
[Annotator "NA RC"]
[PlyCount "73"]
[EventDate "2020.10.27"]
[EventType "swiss"]
[EventRounds "7"]
[EventCountry "GER"]
[SourceTitle "playchess.com"]
[Source "ChessBase"]
[SourceQuality "1"]
[TimeControl "40/4500+30:900+30"]

1. d4 {[%emt 0:00:00]} d5 {[%emt 0:00:00]} 2. c4 {[%emt 0:00:00]} dxc4 {[%emt 0:00:00]} 3. e3 {[%emt 0:00:00]} b5 {[%emt 0:00:05]} 4. a4 {[%emt 0:00:00]} c6 {[%emt 0:00:11]} 5. axb5 {[%emt 0:00:25]} cxb5 {[%emt 0:00:11]} 6. b3 {[%emt 0:05:38]} cxb3 {[%emt 0:00:14]} 7. Bxb5+ {[%emt 0:00:43]} Bd7 {[%emt 0:00:21]} 8. Bc4 {[%emt 0:04:19]} Nf6 {[%emt 0:00:51]} 9. Nc3 {[%emt 0:01:11]} Qb6 {[%emt 0:04:26]} 10. Qxb3 {[%emt 0:02:56]} Qxb3 {[%emt 0:00:11]} 11. Bxb3 {[%emt 0:00:07]} e6 {[%emt 0:00:37]} 12. Nf3 {[%emt 0:00:42]} Bb4 {[%emt 0:00:11]} 13. Bb2 {[%emt 0:01:11]} Ne4 {[%emt 0:01:30]} 14. Rc1 {[%emt 0:00:45]} O-O {[%emt 0:00:37]} 15. O-O {[%emt 0:02:04]} Nxc3 {[%emt 0:01:01]} 16. Bxc3 Bxc3 {[%emt 0:00:24]} 17. Rxc3 {[%emt 0:00:21]} Rc8 {[%emt 0:00:33]} 18. Rxc8+ {[%emt 0:03:24]} Bxc8 {[%emt 0:00:10]} 19. Rc1 {[%emt 0:00:30]} Bb7 {[%emt 0:00:13]} 20. e4 {[%emt 0:01:10]} Nc6 {[%emt 0:00:37]} 21. d5 {[%emt 0:05:11]} exd5 {[%emt 0:00:25]} 22. exd5 {[%emt 0:00:28]} Ne7 {[%emt 0:00:19]} 23. d6 {[%emt 0:00:22]} Nc6 {[%emt 0:00:17]} 24. Bd5 {[%emt 0:00:22]} Rb8 {[%emt 0:04:10]} 25. h3 {[%emt 0:01:19]} Nb4 {[%emt 0:02:03]} 26. Bxb7 {[%emt 0:00:08]} Nd3 {[%emt 0:00:38]} 27. Rc8+ {[%emt 0:00:15]} Rxc8 {[%emt 0:00:06]} 28. Bxc8 {[%emt 0:00:03]} a5 {[%emt 0:00:12]} 29. d7 {[%emt 0:00:04]} g6 {[%emt 0:00:23]} 30. d8=Q+ {[%emt 0:00:05]} Kg7 {[%emt 0:00:11]} 31. Qxa5 {[%emt 0:00:22]} Nf4 {[%emt 0:00:17]} 32. Qe5+ {[%emt 0:01:07]} Kg8 {[%emt 0:00:15]} 33. Ng5 {[%emt 0:00:42]} Nd3 {[%emt 0:00:24]} 34. Qe8+ {[%emt 0:00:07]} Kg7 {[%emt 0:00:10]} 35. Qxf7+ {[%emt 0:00:33]} Kh6 {[%emt 0:00:12]} 36. h4 {[%emt 0:01:06]} Nxf2 {[%emt 0:00:18]} 37. Qxh7# {[%emt 0:00:42]} 1-0

[Event "GER-ch Youth U10W 2020"]
[Site "Willingen"]
[Date "2020.10.29"]
[Round "4.14"]
[White "Jäger, Viktoria"]
[Black "Tran, Hanna Emilie Mai Hoa"]
[Result "0-1"]
[ECO "C50"]
[WhiteElo "1114"]
[BlackElo "986"]
[Annotator "NA RC"]
[PlyCount "104"]
[EventDate "2020.10.27"]
[EventType "swiss"]
[EventRounds "7"]
[EventCountry "GER"]
[SourceTitle "playchess.com"]
[Source "ChessBase"]
[SourceQuality "1"]
[TimeControl "40/4500+30:900+30"]

1. e4 {[%emt 0:00:00]} e5 {[%emt 0:00:00]} 2. Nf3 {[%emt 0:00:00]} Nc6 {[%emt 0:00:00]} 3. Bc4 {[%emt 0:00:00]} d6 {[%emt 0:00:29]} 4. c3 {[%emt 0:00:55]} Nf6 {[%emt 0:01:02]} 5. d4 {[%emt 0:01:40]} Nxe4 {[%emt 0:00:39]} 6. Bd5 {[%emt 0:04:38]} Bf5 {[%emt 0:03:44]} 7. O-O {[%emt 0:02:22]} Be7 {[%emt 0:02:15]} 8. Nbd2 {[%emt 0:02:01]} Nf6 {[%emt 0:01:29]} 9. Re1 {[%emt 0:03:04]} Nxd5 {[%emt 0:02:40]} 10. Ne4 {[%emt 0:04:15]} O-O {[%emt 0:01:41]} 11. Bg5 {[%emt 0:04:57]} Bxe4 {[%emt 0:01:57]} 12. Rxe4 {[%emt 0:03:59]} Bxg5 {[%emt 0:00:20]} 13. dxe5 {[%emt 0:00:56]} Re8 {[%emt 0:00:32]} 14. Qxd5 {[%emt 0:00:20]} Bh6 {[%emt 0:00:32]} 15. e6 {[%emt 0:00:33]} Qe7 {[%emt 0:00:52]} 16. Rae1 {[%emt 0:00:56]} f6 {[%emt 0:00:49]} 17. Qb5 {[%emt 0:04:05]} Ne5 {[%emt 0:01:44]} 18. Nd4 {[%emt 0:01:07]} c6 {[%emt 0:00:30]} 19. Qb3 {[%emt 0:01:48]} d5 {[%emt 0:01:08]} 20. Nf5 {[%emt 0:02:31]} Qd8 {[%emt 0:01:33]} 21. Nxh6+ {[%emt 0:01:46]} gxh6 {[%emt 0:00:08]} 22. R1e3 {[%emt 0:01:22]} dxe4 {[%emt 0:00:55]} 23. e7+ {[%emt 0:00:17]} Qd5 {[%emt 0:01:14]} 24. Rg3+ {[%emt 0:00:29]} Ng6 {[%emt 0:00:34]} 25. c4 {[%emt 0:01:35]} Qa5 {[%emt 0:01:20]} 26. c5+ {[%emt 0:00:26]} Kg7 {[%emt 0:00:07]} 27. h3 {[%emt 0:00:25]} Qxc5 {[%emt 0:00:40]} 28. h4 {[%emt 0:06:13]} h5 {[%emt 0:00:35]} 29. Qxb7 {[%emt 0:02:46]} Qxe7 {[%emt 0:00:48]} 30. Qxc6 {[%emt 0:03:12]} Rac8 {[%emt 0:00:16]} 31. Qd5 {[%emt 0:04:07]} Qe6 {[%emt 0:00:40]} 32. Qb7+ {[%emt 0:04:33]} Qe7 {[%emt 0:00:21]} 33. Qd5 {[%emt 0:03:31]} Rc1+ {[%emt 0:01:25]} 34. Kh2 {[%emt 0:00:41]} Rc5 {[%emt 0:00:22]} 35. Qd4 {[%emt 0:03:14]} Qe5 {[%emt 0:00:27]} 36. Qd7+ {[%emt 0:02:25]} Qe7 {[%emt 0:01:25]} 37. Qd4 {[%emt 0:03:18]} Rd8 {[%emt 0:00:11]} 38. Qb4 {[%emt 0:01:12]} Rc7 {[%emt 0:01:04]} 39. Qe1 {[%emt 0:01:00]} f5 {[%emt 0:00:32]} 40. b3 {[%emt 0:02:13]} f4 {[%emt 0:00:19]} 41. Rg5 {[%emt 0:15:43]} h6 {[%emt 0:15:16]} 42. Qa1+ {[%emt 0:01:50]} Kh7 {[%emt 0:00:29]} 43. g3 {[%emt 0:01:51]} hxg5 44. Qe1 {[%emt 0:01:15]} gxh4 {[%emt 0:00:32]} 45. gxh4 {[%emt 0:00:32]} Qxh4+ {[%emt 0:00:09]} 46. Kg1 {[%emt 0:01:22]} Qg4+ {[%emt 0:00:34]} 47. Kh2 {[%emt 0:00:30]} Qh4+ {[%emt 0:00:16]} 48. Kg1 {[%emt 0:00:09]} Qh3 {[%emt 0:00:10]} 49. f3 {[%emt 0:00:33]} Nh4 {[%emt 0:00:24]} 50. Qxe4+ {[%emt 0:00:32]} Kg8 {[%emt 0:00:21]} 51. Qe2 {[%emt 0:00:27]} Rc1+ {[%emt 0:00:09]} 52. Kf2 {[%emt 0:00:31]} Qg2# 0-1

[Event "GER-ch Youth U10W 2020"]
[Site "Willingen"]
[Date "2020.10.29"]
[Round "4.15"]
[White "Nalam, Mokshadha"]
[Black "Manakov, Luisa"]
[Result "1-0"]
[ECO "C54"]
[WhiteElo "962"]
[BlackElo "1103"]
[Annotator "NA RC"]
[PlyCount "149"]
[EventDate "2020.10.27"]
[EventType "swiss"]
[EventRounds "7"]
[EventCountry "GER"]
[SourceTitle "playchess.com"]
[Source "ChessBase"]
[SourceQuality "1"]
[TimeControl "40/4500+30:900+30"]

1. e4 {[%emt 0:00:00]} e5 {[%emt 0:00:00]} 2. Nf3 {[%emt 0:00:00]} Nc6 {[%emt 0:00:00]} 3. Bc4 {[%emt 0:00:00]} Bc5 {[%emt 0:00:00]} 4. c3 {[%emt 0:00:38]} Nf6 {[%emt 0:00:10]} 5. d3 {[%emt 0:00:19]} d6 {[%emt 0:00:55]} 6. h3 {[%emt 0:00:07]} Bd7 {[%emt 0:01:19]} 7. a4 {[%emt 0:00:28]} a6 {[%emt 0:01:20]} 8. O-O {[%emt 0:00:17]} h6 {[%emt 0:01:21]} 9. Nbd2 {[%emt 0:01:25]} O-O {[%emt 0:00:20]} 10. Re1 {[%emt 0:00:38]} Be6 {[%emt 0:02:00]} 11. Bb3 {[%emt 0:00:33]} Qd7 {[%emt 0:02:17]} 12. Bxe6 {[%emt 0:01:26]} fxe6 {[%emt 0:00:32]} 13. Nf1 {[%emt 0:00:23]} Rfe8 {[%emt 0:01:28]} 14. Be3 {[%emt 0:00:13]} Ba7 {[%emt 0:01:07]} 15. Bxa7 {[%emt 0:00:15]} Rxa7 {[%emt 0:00:09]} 16. d4 {[%emt 0:00:42]} exd4 {[%emt 0:00:44]} 17. cxd4 {[%emt 0:01:00]} e5 {[%emt 0:00:40]} 18. d5 {[%emt 0:00:14]} Ne7 {[%emt 0:00:44]} 19. Ng3 {[%emt 0:01:36]} c6 {[%emt 0:00:49]} 20. dxc6 {[%emt 0:00:14]} Nxc6 {[%emt 0:01:03]} 21. b4 {[%emt 0:01:33]} Nxb4 {[%emt 0:00:47]} 22. Qb3+ {[%emt 0:00:11]} Qe6 {[%emt 0:07:37]} 23. Qxb4 {[%emt 0:00:49]} Rc8 {[%emt 0:00:50]} 24. Rec1 {[%emt 0:02:38]} Rxc1+ {[%emt 0:03:34]} 25. Rxc1 {[%emt 0:00:19]} Qd7 {[%emt 0:02:51]} 26. Rd1 {[%emt 0:01:03]} Ne8 {[%emt 0:00:16]} 27. Nxe5 {[%emt 0:00:13]} Qc7 {[%emt 0:02:37]} 28. Qb3+ {[%emt 0:02:08]} Kh7 {[%emt 0:00:42]} 29. Nf3 {[%emt 0:01:27]} a5 {[%emt 0:02:34]} 30. Qd3 {[%emt 0:01:20]} Kh8 {[%emt 0:00:38]} 31. Qe3 {[%emt 0:00:41]} Ra6 {[%emt 0:00:16]} 32. e5 {[%emt 0:00:17]} Rc6 {[%emt 0:00:21]} 33. exd6 {[%emt 0:00:26]} Nxd6 {[%emt 0:00:20]} 34. Qf4 {[%emt 0:02:46]} b6 {[%emt 0:02:07]} 35. Ne5 {[%emt 0:01:29]} Rc5 {[%emt 0:02:17]} 36. Ng6+ {[%emt 0:00:55]} Kh7 {[%emt 0:00:25]} 37. Qxd6 {[%emt 0:00:16]} Qxd6 {[%emt 0:01:01]} 38. Rxd6 {[%emt 0:00:19]} b5 {[%emt 0:01:10]} 39. axb5 {[%emt 0:00:28]} Rxb5 {[%emt 0:00:09]} 40. Nf4 {[%emt 0:00:54]} a4 {[%emt 0:00:18]} 41. Ra6 {[%emt 0:15:10]} Rb1+ {[%emt 0:15:11]} 42. Kh2 {[%emt 0:00:11]} Ra1 {[%emt 0:00:08]} 43. Nge2 {[%emt 0:00:34]} a3 {[%emt 0:00:12]} 44. Nc3 {[%emt 0:00:41]} g5 {[%emt 0:00:32]} 45. Nfe2 {[%emt 0:00:11]} h5 {[%emt 0:00:48]} 46. Nd4 {[%emt 0:00:24]} h4 {[%emt 0:00:44]} 47. Ndb5 {[%emt 0:00:10]} Rf1 {[%emt 0:00:48]} 48. f3 {[%emt 0:00:37]} Ra1 {[%emt 0:01:06]} 49. Rxa3 {[%emt 0:00:13]} Rxa3 {[%emt 0:00:07]} 50. Nxa3 {[%emt 0:00:04]} Kg6 {[%emt 0:00:12]} 51. g3 {[%emt 0:00:14]} hxg3+ {[%emt 0:00:24]} 52. Kxg3 {[%emt 0:00:48]} Kf5 {[%emt 0:00:10]} 53. Ne2 {[%emt 0:00:21]} Kf6 {[%emt 0:00:25]} 54. Kg4 {[%emt 0:00:10]} Kg6 {[%emt 0:00:08]} 55. Nc2 {[%emt 0:00:22]} Kh6 {[%emt 0:00:23]} 56. h4 {[%emt 0:00:33]} gxh4 {[%emt 0:00:09]} 57. Kxh4 {[%emt 0:00:04]} Kg6 {[%emt 0:00:11]} 58. Kg4 {[%emt 0:00:09]} Kf7 {[%emt 0:00:15]} 59. Kf5 {[%emt 0:00:16]} Kf8 {[%emt 0:00:17]} 60. Kf6 {[%emt 0:00:12]} Ke8 {[%emt 0:00:20]} 61. f4 {[%emt 0:00:11]} Kf8 {[%emt 0:00:13]} 62. f5 {[%emt 0:00:07]} Ke8 {[%emt 0:00:07]} 63. Kg7 {[%emt 0:00:06]} Ke7 {[%emt 0:00:11]} 64. f6+ {[%emt 0:00:11]} Ke6 {[%emt 0:00:06]} 65. f7 {[%emt 0:00:07]} Ke5 {[%emt 0:00:07]} 66. f8=Q {[%emt 0:00:17]} Kd5 {[%emt 0:00:16]} 67. Qe7 {[%emt 0:00:26]} Kc6 {[%emt 0:00:09]} 68. Qd8 {[%emt 0:00:10]} Kb7 {[%emt 0:00:10]} 69. Qd6 {[%emt 0:00:16]} Ka8 {[%emt 0:00:05]} 70. Qd7 {[%emt 0:00:09]} Kb8 {[%emt 0:00:10]} 71. Kf6 {[%emt 0:00:09]} Ka8 {[%emt 0:00:06]} 72. Ke6 {[%emt 0:00:12]} Kb8 {[%emt 0:00:04]} 73. Kd6 {[%emt 0:00:15]} Ka8 {[%emt 0:00:02]} 74. Kc6 {[%emt 0:00:24]} Kb8 {[%emt 0:00:06]} 75. Qb7# 1-0